[Event "*** Titled Tuesday Blitz"]
[Site "Chess.com"]
[Date "2021.02.02"]
[Round "2"]
[White "Flopezin"]
[Black "AntonovaNadezhda"]
[Result "1-0"]
[WhiteElo "2422"]
[BlackElo "2172"]
[TimeControl "180+1"]
[EndTime "10:19:50 PST"]
[Termination "Flopezin won on time"]

1. c4 {[%clk 0:02:57.3]} 1... Nf6 {[%clk 0:02:58]} 2. Nc3 {[%clk 0:02:52.8]}
2... g6 {[%clk 0:02:56]} 3. e4 {[%clk 0:02:52.2]} 3... d6 {[%clk 0:02:55]} 4. d4
{[%clk 0:02:52.8]} 4... Bg7 {[%clk 0:02:54.7]} 5. Be2 {[%clk 0:02:46.4]} 5...
O-O {[%clk 0:02:53.8]} 6. Nf3 {[%clk 0:02:46.7]} 6... e5 {[%clk 0:02:53.4]} 7.
d5 {[%clk 0:02:47.1]} 7... a5 {[%clk 0:02:47.5]} 8. Bg5 {[%clk 0:02:47]} 8...
Na6 {[%clk 0:02:46.7]} 9. Nd2 {[%clk 0:02:46.5]} 9... c6 {[%clk 0:02:40.3]} 10.
Rc1 {[%clk 0:02:37.6]} 10... cxd5 {[%clk 0:02:26.8]} 11. cxd5 {[%clk 0:02:36.1]}
11... Nc5 {[%clk 0:02:24.2]} 12. O-O {[%clk 0:02:33]} 12... h6 {[%clk
0:02:23.3]} 13. Be3 {[%clk 0:02:32.1]} 13... Ne8 {[%clk 0:01:46.1]} 14. a3
{[%clk 0:02:23.5]} 14... f5 {[%clk 0:01:43.4]} 15. f3 {[%clk 0:02:23.9]} 15...
f4 {[%clk 0:01:35.3]} 16. Bxc5 {[%clk 0:02:15.1]} 16... dxc5 {[%clk 0:01:34.3]}
17. Nc4 {[%clk 0:02:16]} 17... Nd6 {[%clk 0:01:29.6]} 18. Nxd6 {[%clk
0:02:16.5]} 18... Qxd6 {[%clk 0:01:27.8]} 19. Nb5 {[%clk 0:02:17.4]} 19... Qb6
{[%clk 0:01:21.3]} 20. Bc4 {[%clk 0:02:15]} 20... Kh8 {[%clk 0:01:15.3]} 21. d6
{[%clk 0:02:02.9]} 21... Bd7 {[%clk 0:01:13.9]} 22. Qe2 {[%clk 0:02:02.8]} 22...
Bxb5 {[%clk 0:01:08.3]} 23. Bxb5 {[%clk 0:02:02.4]} 23... Qxd6 {[%clk
0:01:08.2]} 24. Rfd1 {[%clk 0:02:02.5]} 24... Qb6 {[%clk 0:01:04.9]} 25. Rd5
{[%clk 0:02:02.8]} 25... Rac8 {[%clk 0:01:00.5]} 26. Qc4 {[%clk 0:01:55.9]}
26... Rfd8 {[%clk 0:00:50.2]} 27. Rxd8+ {[%clk 0:01:39.6]} 27... Qxd8 {[%clk
0:00:47.1]} 28. Qd5 {[%clk 0:01:29.8]} 28... b6 {[%clk 0:00:41.1]} 29. Rd1
{[%clk 0:01:22.2]} 29... Bf6 {[%clk 0:00:38.9]} 30. Qb3 {[%clk 0:01:17.1]} 30...
Qf8 {[%clk 0:00:31.2]} 31. Rd7 {[%clk 0:01:10.4]} 31... Rd8 {[%clk 0:00:29.7]}
32. Rb7 {[%clk 0:01:03.3]} 32... Qd6 {[%clk 0:00:14.3]} 33. Bc4 {[%clk
0:01:03.2]} 33... Qd4+ {[%clk 0:00:12.6]} 34. Kf1 {[%clk 0:01:03.6]} 34... Qd1+
{[%clk 0:00:10.7]} 35. Qxd1 {[%clk 0:01:02.7]} 35... Rxd1+ {[%clk 0:00:11.3]}
36. Ke2 {[%clk 0:00:58.9]} 36... Rd6 {[%clk 0:00:09.7]} 37. Bd5 {[%clk 0:00:55]}
37... g5 {[%clk 0:00:07.6]} 38. a4 {[%clk 0:00:54.5]} 38... h5 {[%clk
0:00:05.9]} 39. Kd3 {[%clk 0:00:54.3]} 39... g4 {[%clk 0:00:05.5]} 40. Kc4
{[%clk 0:00:54.5]} 40... Bd8 {[%clk 0:00:02.1]} 41. Rf7 {[%clk 0:00:41.5]} 41...
gxf3 {[%clk 0:00:01.1]} 42. gxf3 {[%clk 0:00:40.3]} 1-0

[Event "*** Titled Tuesday Blitz"]
[Site "Chess.com"]
[Date "2021.02.02"]
[Round "2"]
[White "PriSachu"]
[Black "Aslanov_Umid"]
[Result "0-1"]
[WhiteElo "2475"]
[BlackElo "2311"]
[TimeControl "180+1"]
[EndTime "10:19:51 PST"]
[Termination "Aslanov_Umid won on time"]

1. e4 {[%clk 0:03:00.9]} 1... c5 {[%clk 0:02:59.6]} 2. Nf3 {[%clk 0:02:54.9]}
2... d6 {[%clk 0:02:59.7]} 3. d4 {[%clk 0:02:54.4]} 3... cxd4 {[%clk 0:03:00.6]}
4. Nxd4 {[%clk 0:02:54.7]} 4... Nf6 {[%clk 0:03:00.2]} 5. Nc3 {[%clk 0:02:54.5]}
5... a6 {[%clk 0:03:00.7]} 6. h3 {[%clk 0:02:50.4]} 6... e6 {[%clk 0:03:00.4]}
7. g4 {[%clk 0:02:49.4]} 7... Be7 {[%clk 0:03:00.9]} 8. g5 {[%clk 0:02:48.4]}
8... Nfd7 {[%clk 0:03:00.2]} 9. Be3 {[%clk 0:02:48.3]} 9... O-O {[%clk 0:02:59]}
10. h4 {[%clk 0:02:39.7]} 10... Nc6 {[%clk 0:02:58.2]} 11. Qd2 {[%clk
0:02:33.6]} 11... Qc7 {[%clk 0:02:57.4]} 12. O-O-O {[%clk 0:02:28.8]} 12... b5
{[%clk 0:02:57.2]} 13. Kb1 {[%clk 0:02:24.1]} 13... Bb7 {[%clk 0:02:56]} 14.
Nxc6 {[%clk 0:02:22.2]} 14... Bxc6 {[%clk 0:02:56.9]} 15. Bd3 {[%clk 0:02:21.2]}
15... Ne5 {[%clk 0:02:50.9]} 16. f4 {[%clk 0:01:56.1]} 16... Nc4 {[%clk
0:02:49.8]} 17. Bxc4 {[%clk 0:01:50.1]} 17... bxc4 {[%clk 0:02:50.7]} 18. h5
{[%clk 0:01:49.7]} 18... Rab8 {[%clk 0:02:50]} 19. g6 {[%clk 0:01:40.2]} 19...
Qb7 {[%clk 0:02:20]} 20. b3 {[%clk 0:01:37.7]} 20... cxb3 {[%clk 0:02:18.3]} 21.
axb3 {[%clk 0:01:32.4]} 21... Bxe4 {[%clk 0:02:18.4]} 22. Nxe4 {[%clk
0:01:15.9]} 22... Qxe4 {[%clk 0:02:19.3]} 23. Ka2 {[%clk 0:00:49.2]} 23... Rfc8
{[%clk 0:02:15.5]} 24. Rh2 {[%clk 0:00:38.7]} 24... d5 {[%clk 0:01:11.9]} 25.
gxh7+ {[%clk 0:00:31.1]} 25... Kxh7 {[%clk 0:01:00]} 26. Bd4 {[%clk 0:00:25.8]}
26... Rb4 {[%clk 0:00:44.2]} 27. Bb2 {[%clk 0:00:15.1]} 27... Bf6 {[%clk
0:00:20.3]} 28. Bxf6 {[%clk 0:00:09.4]} 28... gxf6 {[%clk 0:00:21.2]} 29. Rg1
{[%clk 0:00:06.5]} 29... Rbc4 {[%clk 0:00:10.8]} 30. Kb1 {[%clk 0:00:03.9]}
30... Rc3 {[%clk 0:00:09.3]} 31. Rhg2 {[%clk 0:00:01.1]} 31... Rxb3+ {[%clk
0:00:09.4]} 0-1

[Event "*** Titled Tuesday Blitz"]
[Site "Chess.com"]
[Date "2021.02.02"]
[Round "2"]
[White "Manukyan_Artak"]
[Black "CalinGheorghiu"]
[Result "0-1"]
[WhiteElo "2431"]
[BlackElo "2245"]
[TimeControl "180+1"]
[EndTime "10:19:52 PST"]
[Termination "CalinGheorghiu won by resignation"]

1. e4 {[%clk 0:03:00.9]} 1... c5 {[%clk 0:02:59.4]} 2. Nf3 {[%clk 0:03:01]} 2...
d6 {[%clk 0:02:59.7]} 3. Bb5+ {[%clk 0:03:00.4]} 3... Bd7 {[%clk 0:02:57.4]} 4.
Bxd7+ {[%clk 0:03:00.4]} 4... Qxd7 {[%clk 0:02:56.7]} 5. c4 {[%clk 0:03:00.5]}
5... Nf6 {[%clk 0:02:55.7]} 6. Nc3 {[%clk 0:03:00.6]} 6... Nc6 {[%clk
0:02:55.9]} 7. d4 {[%clk 0:03:00.2]} 7... cxd4 {[%clk 0:02:56.1]} 8. Nxd4 {[%clk
0:03:01.1]} 8... e6 {[%clk 0:02:56.7]} 9. O-O {[%clk 0:03:00]} 9... Be7 {[%clk
0:02:57]} 10. b3 {[%clk 0:02:59.9]} 10... O-O {[%clk 0:02:56.7]} 11. Bb2 {[%clk
0:03:00.2]} 11... a6 {[%clk 0:02:46.9]} 12. a4 {[%clk 0:02:59.3]} 12... Rfd8
{[%clk 0:02:36.3]} 13. Re1 {[%clk 0:02:57.6]} 13... Bf8 {[%clk 0:02:29.9]} 14.
Qd2 {[%clk 0:02:49.8]} 14... d5 {[%clk 0:02:20.5]} 15. Nxc6 {[%clk 0:02:46.9]}
15... bxc6 {[%clk 0:02:20]} 16. cxd5 {[%clk 0:02:36.6]} 16... cxd5 {[%clk
0:02:17.4]} 17. e5 {[%clk 0:02:36.3]} 17... Ne8 {[%clk 0:01:58.1]} 18. Ne2
{[%clk 0:02:28.1]} 18... Rab8 {[%clk 0:01:47.3]} 19. Nd4 {[%clk 0:02:25.9]}
19... Rdc8 {[%clk 0:01:37.9]} 20. Rec1 {[%clk 0:02:10.1]} 20... Bc5 {[%clk
0:01:29.9]} 21. Rab1 {[%clk 0:02:02.1]} 21... Rb7 {[%clk 0:01:17.2]} 22. Bc3
{[%clk 0:01:37.1]} 22... Rcb8 {[%clk 0:01:09.3]} 23. Qa2 {[%clk 0:01:14.3]}
23... f6 {[%clk 0:00:54.6]} 24. exf6 {[%clk 0:01:13.5]} 24... Nxf6 {[%clk
0:00:54.5]} 25. Ba1 {[%clk 0:00:39.8]} 25... Ne4 {[%clk 0:00:42.6]} 26. f3
{[%clk 0:00:37.2]} 26... Rb4 {[%clk 0:00:33.9]} 27. fxe4 {[%clk 0:00:32.4]}
27... Bxd4+ {[%clk 0:00:33.1]} 28. Bxd4 {[%clk 0:00:32.1]} 28... Rxd4 {[%clk
0:00:33.6]} 29. exd5 {[%clk 0:00:31.5]} 29... Qxd5 {[%clk 0:00:27.2]} 30. Qf2
{[%clk 0:00:28.7]} 30... Rf8 {[%clk 0:00:26.6]} 31. Qe2 {[%clk 0:00:28.5]} 31...
Rd2 {[%clk 0:00:25.7]} 32. Qg4 {[%clk 0:00:28.2]} 32... h5 {[%clk 0:00:20.3]}
33. Qg3 {[%clk 0:00:26.2]} 33... Qd4+ {[%clk 0:00:14.5]} 34. Kh1 {[%clk
0:00:26.3]} 34... h4 {[%clk 0:00:11.4]} 35. Qg6 {[%clk 0:00:24]} 35... Qd5
{[%clk 0:00:10.1]} 36. h3 {[%clk 0:00:19.4]} 36... Rd3 {[%clk 0:00:08.5]} 37.
Kh2 {[%clk 0:00:16.1]} 37... Rg3 {[%clk 0:00:07.7]} 38. Rg1 {[%clk 0:00:15.4]}
38... Rxg6 {[%clk 0:00:07.6]} 0-1

[Event "*** Titled Tuesday Blitz"]
[Site "Chess.com"]
[Date "2021.02.02"]
[Round "2"]
[White "Lukianoo"]
[Black "arctic_t00"]
[Result "0-1"]
[WhiteElo "2771"]
[BlackElo "2529"]
[TimeControl "180+1"]
[EndTime "10:19:54 PST"]
[Termination "arctic_t00 won by resignation"]

1. e4 {[%clk 0:02:57.9]} 1... e6 {[%clk 0:03:00.2]} 2. b3 {[%clk 0:02:50.8]}
2... c5 {[%clk 0:02:58.4]} 3. Nf3 {[%clk 0:02:48.9]} 3... a6 {[%clk 0:02:57.6]}
4. Bb2 {[%clk 0:02:48.8]} 4... Nc6 {[%clk 0:02:57.7]} 5. d4 {[%clk 0:02:47.2]}
5... cxd4 {[%clk 0:02:57.8]} 6. Nxd4 {[%clk 0:02:48.1]} 6... Qf6 {[%clk
0:02:57.6]} 7. c3 {[%clk 0:02:29.7]} 7... Bc5 {[%clk 0:02:54.3]} 8. Be2 {[%clk
0:02:24.5]} 8... e5 {[%clk 0:02:46.6]} 9. Nf3 {[%clk 0:02:20.4]} 9... Nge7
{[%clk 0:02:37.8]} 10. O-O {[%clk 0:02:16.5]} 10... O-O {[%clk 0:02:36.7]} 11.
c4 {[%clk 0:02:13.9]} 11... d6 {[%clk 0:02:35]} 12. Nc3 {[%clk 0:02:13.7]} 12...
Bg4 {[%clk 0:02:29.4]} 13. h3 {[%clk 0:02:06.6]} 13... Bxf3 {[%clk 0:02:24.9]}
14. Bxf3 {[%clk 0:02:07.5]} 14... Bd4 {[%clk 0:02:19.9]} 15. Qd2 {[%clk
0:01:51.6]} 15... Qh4 {[%clk 0:02:07.4]} 16. Ne2 {[%clk 0:01:46.4]} 16... Bxb2
{[%clk 0:02:06.2]} 17. Qxb2 {[%clk 0:01:47.3]} 17... Rad8 {[%clk 0:01:57.3]} 18.
Rad1 {[%clk 0:01:41.8]} 18... Qf6 {[%clk 0:01:40.7]} 19. Rd3 {[%clk 0:01:34]}
19... Ng6 {[%clk 0:01:40.3]} 20. Rfd1 {[%clk 0:01:30.7]} 20... Nh4 {[%clk
0:01:25.4]} 21. Qd2 {[%clk 0:01:28.9]} 21... Qg6 {[%clk 0:01:15.7]} 22. Kh1
{[%clk 0:01:15.3]} 22... Nxf3 {[%clk 0:00:38.2]} 23. gxf3 {[%clk 0:01:14.1]}
23... Qh5 {[%clk 0:00:36.6]} 24. Kh2 {[%clk 0:01:12.4]} 24... Ne7 {[%clk
0:00:32.9]} 25. Ng3 {[%clk 0:01:09.1]} 25... Qh4 {[%clk 0:00:33.2]} 26. Rxd6
{[%clk 0:01:07.3]} 26... Rxd6 {[%clk 0:00:33]} 27. Qxd6 {[%clk 0:01:08.2]} 27...
Ng6 {[%clk 0:00:32.4]} 28. Qd7 {[%clk 0:00:49.1]} 28... h5 {[%clk 0:00:10.3]}
29. Qf5 {[%clk 0:00:44.6]} 29... Nf4 {[%clk 0:00:10.2]} 30. Qd7 {[%clk
0:00:18.7]} 30... g6 {[%clk 0:00:08.7]} 31. c5 {[%clk 0:00:14.8]} 31... Kg7
{[%clk 0:00:08.5]} 32. b4 {[%clk 0:00:14.7]} 32... Rd8 {[%clk 0:00:08.4]} 33.
Nxh5+ {[%clk 0:00:04.9]} 33... Qxh5 {[%clk 0:00:06.2]} 0-1

[Event "*** Titled Tuesday Blitz"]
[Site "Chess.com"]
[Date "2021.02.02"]
[Round "2"]
[White "swisspower96"]
[Black "kekic76"]
[Result "1-0"]
[WhiteElo "2649"]
[BlackElo "2374"]
[TimeControl "180+1"]
[EndTime "10:19:55 PST"]
[Termination "swisspower96 won by checkmate"]

1. d4 {[%clk 0:03:00.9]} 1... d6 {[%clk 0:02:59.4]} 2. e4 {[%clk 0:03:00.2]}
2... e5 {[%clk 0:02:59.3]} 3. Nf3 {[%clk 0:02:58.4]} 3... Nc6 {[%clk 0:02:59]}
4. Bb5 {[%clk 0:02:44.4]} 4... exd4 {[%clk 0:02:56.4]} 5. O-O {[%clk 0:02:43.2]}
5... Bd7 {[%clk 0:02:53.8]} 6. Bxc6 {[%clk 0:02:41.9]} 6... bxc6 {[%clk
0:02:52.8]} 7. Nxd4 {[%clk 0:02:42]} 7... Be7 {[%clk 0:02:50.7]} 8. c4 {[%clk
0:02:42.2]} 8... Nf6 {[%clk 0:02:49.4]} 9. Nc3 {[%clk 0:02:42.6]} 9... O-O
{[%clk 0:02:48.9]} 10. Bf4 {[%clk 0:02:41]} 10... c5 {[%clk 0:02:41.5]} 11. Nc2
{[%clk 0:02:38]} 11... Bc6 {[%clk 0:02:41.1]} 12. Re1 {[%clk 0:02:36.4]} 12...
Nd7 {[%clk 0:02:39.3]} 13. Nd5 {[%clk 0:02:36]} 13... Bf6 {[%clk 0:02:34]} 14.
Rb1 {[%clk 0:02:35.7]} 14... Be5 {[%clk 0:02:31.1]} 15. Be3 {[%clk 0:02:14.8]}
15... Nb6 {[%clk 0:02:30.3]} 16. b3 {[%clk 0:02:08.6]} 16... Nxd5 {[%clk
0:02:21.7]} 17. exd5 {[%clk 0:02:04.1]} 17... Bd7 {[%clk 0:02:20.8]} 18. f4
{[%clk 0:02:04.1]} 18... Bf6 {[%clk 0:02:19.8]} 19. Qd2 {[%clk 0:01:56]} 19...
Bf5 {[%clk 0:02:18]} 20. Rbd1 {[%clk 0:01:55.1]} 20... Re8 {[%clk 0:02:15.9]}
21. Bf2 {[%clk 0:01:55.4]} 21... Qd7 {[%clk 0:02:13.4]} 22. Ne3 {[%clk
0:01:54.9]} 22... Be4 {[%clk 0:02:12.4]} 23. Re2 {[%clk 0:01:46.4]} 23... Bd4
{[%clk 0:02:01.2]} 24. Rde1 {[%clk 0:01:44.9]} 24... Bxe3 {[%clk 0:01:59.3]} 25.
Rxe3 {[%clk 0:01:36.6]} 25... f5 {[%clk 0:01:58.7]} 26. Rg3 {[%clk 0:01:33.3]}
26... a5 {[%clk 0:01:55.1]} 27. h3 {[%clk 0:01:28.1]} 27... a4 {[%clk
0:01:54.5]} 28. b4 {[%clk 0:01:28.4]} 28... cxb4 {[%clk 0:01:54]} 29. Qxb4
{[%clk 0:01:29.3]} 29... Reb8 {[%clk 0:01:51]} 30. Qc3 {[%clk 0:01:28.2]} 30...
a3 {[%clk 0:01:36]} 31. Bd4 {[%clk 0:01:26.3]} 31... g6 {[%clk 0:01:35.9]} 32.
h4 {[%clk 0:00:40.9]} 32... Rb2 {[%clk 0:01:34.7]} 33. h5 {[%clk 0:00:41.4]}
33... Kf7 {[%clk 0:01:34.8]} 34. Bh8 {[%clk 0:00:24.4]} 34... Rg8 {[%clk
0:01:10.3]} 35. Qf6+ {[%clk 0:00:19.4]} 35... Ke8 {[%clk 0:01:09.8]} 36. hxg6
{[%clk 0:00:20]} 36... hxg6 {[%clk 0:01:04.6]} 37. Rxa3 {[%clk 0:00:09.5]} 37...
Qc8 {[%clk 0:00:30.9]} 38. Rae3 {[%clk 0:00:06.8]} 38... Rxg2+ {[%clk
0:00:21.1]} 39. Kf1 {[%clk 0:00:06.9]} 39... Rh2 {[%clk 0:00:20]} 40. Rxe4+
{[%clk 0:00:07.3]} 40... fxe4 {[%clk 0:00:18.3]} 41. Rxe4+ {[%clk 0:00:08.2]}
41... Kd7 {[%clk 0:00:17.7]} 42. Qe6+ {[%clk 0:00:08]} 42... Kd8 {[%clk
0:00:17.4]} 43. Bf6# {[%clk 0:00:08.7]} 1-0

[Event "*** Titled Tuesday Blitz"]
[Site "Chess.com"]
[Date "2021.02.02"]
[Round "2"]
[White "igorkovalenko"]
[Black "DenishevM"]
[Result "1-0"]
[WhiteElo "2869"]
[BlackElo "2554"]
[TimeControl "180+1"]
[EndTime "10:19:56 PST"]
[Termination "igorkovalenko won on time"]

1. d4 {[%clk 0:02:33]} 1... Nf6 {[%clk 0:02:58.2]} 2. Nf3 {[%clk 0:02:33]} 2...
b6 {[%clk 0:02:57.9]} 3. e3 {[%clk 0:02:32.8]} 3... Bb7 {[%clk 0:02:58.1]} 4.
Be2 {[%clk 0:02:33.2]} 4... g6 {[%clk 0:02:56.7]} 5. O-O {[%clk 0:02:33.5]} 5...
Bg7 {[%clk 0:02:57.2]} 6. c4 {[%clk 0:02:34]} 6... O-O {[%clk 0:02:56.8]} 7. Nc3
{[%clk 0:02:34.1]} 7... e6 {[%clk 0:02:54.6]} 8. Qc2 {[%clk 0:02:32.5]} 8... d5
{[%clk 0:02:54.4]} 9. cxd5 {[%clk 0:02:30.1]} 9... exd5 {[%clk 0:02:50.5]} 10.
b4 {[%clk 0:02:28.9]} 10... Nc6 {[%clk 0:02:45]} 11. Rb1 {[%clk 0:02:28]} 11...
Ne7 {[%clk 0:02:44.4]} 12. a4 {[%clk 0:02:18.3]} 12... Nf5 {[%clk 0:02:41.2]}
13. Ne5 {[%clk 0:01:53.3]} 13... Nd6 {[%clk 0:02:32.3]} 14. Bf3 {[%clk
0:01:36.8]} 14... Qe7 {[%clk 0:02:26.3]} 15. Rd1 {[%clk 0:01:29.9]} 15... Nfe4
{[%clk 0:02:20.3]} 16. Bb2 {[%clk 0:01:16.7]} 16... f6 {[%clk 0:01:48]} 17. Nd3
{[%clk 0:01:14.7]} 17... a5 {[%clk 0:01:34]} 18. b5 {[%clk 0:00:59]} 18... g5
{[%clk 0:01:30.7]} 19. Ba3 {[%clk 0:00:52.1]} 19... Kh8 {[%clk 0:01:13.2]} 20.
Qb3 {[%clk 0:00:44.7]} 20... Qf7 {[%clk 0:00:46.1]} 21. Rbc1 {[%clk 0:00:37.4]}
21... Rac8 {[%clk 0:00:41.8]} 22. Rc2 {[%clk 0:00:32.2]} 22... Rfe8 {[%clk
0:00:38.1]} 23. Rdc1 {[%clk 0:00:27.1]} 23... Nxc3 {[%clk 0:00:34.8]} 24. Bxd6
{[%clk 0:00:20.1]} 24... Ne4 {[%clk 0:00:16.2]} 25. Bg3 {[%clk 0:00:17.5]} 25...
Nxg3 {[%clk 0:00:15]} 26. hxg3 {[%clk 0:00:18.4]} 26... Qd7 {[%clk 0:00:11.7]}
27. g4 {[%clk 0:00:17]} 27... h5 {[%clk 0:00:10.8]} 28. gxh5 {[%clk 0:00:16]}
28... g4 {[%clk 0:00:11.7]} 29. Be2 {[%clk 0:00:16.4]} 29... Kh7 {[%clk
0:00:11.6]} 30. g3 {[%clk 0:00:15.8]} 30... Bh6 {[%clk 0:00:11.3]} 31. Ne1
{[%clk 0:00:14.6]} 31... Bg5 {[%clk 0:00:08.8]} 32. Qd3+ {[%clk 0:00:14.7]}
32... f5 {[%clk 0:00:07.6]} 33. Bxg4 {[%clk 0:00:14.7]} 33... Rf8 {[%clk
0:00:04.6]} 34. Nf3 {[%clk 0:00:14.7]} 34... Kh6 {[%clk 0:00:04.4]} 35. Ne5
{[%clk 0:00:13.4]} 35... Qe6 {[%clk 0:00:04.6]} 36. Rc6 {[%clk 0:00:13.1]} 36...
Bxc6 {[%clk 0:00:04.7]} 37. Rxc6 {[%clk 0:00:14]} 37... Qxc6 {[%clk 0:00:04.7]}
38. bxc6 {[%clk 0:00:14.5]} 38... Rce8 {[%clk 0:00:02.7]} 39. Bxf5 {[%clk
0:00:14.5]} 1-0

[Event "*** Titled Tuesday Blitz"]
[Site "Chess.com"]
[Date "2021.02.02"]
[Round "2"]
[White "sbouchet"]
[Black "Sharpchess22"]
[Result "0-1"]
[WhiteElo "2341"]
[BlackElo "2704"]
[TimeControl "180+1"]
[EndTime "10:19:57 PST"]
[Termination "Sharpchess22 won on time"]

1. e4 {[%clk 0:03:00.9]} 1... e5 {[%clk 0:02:57.3]} 2. Nf3 {[%clk 0:02:57.2]}
2... Nc6 {[%clk 0:02:57.3]} 3. Nc3 {[%clk 0:02:57.2]} 3... Nf6 {[%clk
0:02:56.9]} 4. d4 {[%clk 0:02:56.6]} 4... exd4 {[%clk 0:02:56.5]} 5. Nxd4 {[%clk
0:02:57.2]} 5... Bb4 {[%clk 0:02:57.1]} 6. Nxc6 {[%clk 0:02:57.4]} 6... bxc6
{[%clk 0:02:56.6]} 7. Bd3 {[%clk 0:02:57.9]} 7... O-O {[%clk 0:02:55.8]} 8. O-O
{[%clk 0:02:57.2]} 8... Re8 {[%clk 0:02:55.9]} 9. Bg5 {[%clk 0:02:56]} 9... Rb8
{[%clk 0:02:53.7]} 10. Qf3 {[%clk 0:02:39.9]} 10... Bd6 {[%clk 0:02:53]} 11.
Bxf6 {[%clk 0:02:20.9]} 11... Qxf6 {[%clk 0:02:51.1]} 12. Qxf6 {[%clk
0:02:20.8]} 12... gxf6 {[%clk 0:02:51.4]} 13. Rab1 {[%clk 0:02:11.2]} 13... Be5
{[%clk 0:02:45.4]} 14. Na4 {[%clk 0:01:39.7]} 14... Rb4 {[%clk 0:02:41.9]} 15.
b3 {[%clk 0:01:33.5]} 15... d5 {[%clk 0:02:41.6]} 16. Rbe1 {[%clk 0:01:21.8]}
16... Rd8 {[%clk 0:02:37.1]} 17. Re2 {[%clk 0:01:05.5]} 17... a5 {[%clk
0:01:58.1]} 18. Rfe1 {[%clk 0:01:00.1]} 18... Kf8 {[%clk 0:01:52.3]} 19. h3
{[%clk 0:00:21.5]} 19... h5 {[%clk 0:01:46.9]} 20. Kf1 {[%clk 0:00:16.4]} 20...
h4 {[%clk 0:01:46.1]} 21. f3 {[%clk 0:00:15.3]} 21... Bd4 {[%clk 0:01:30.2]} 22.
Rd1 {[%clk 0:00:15.3]} 22... Be6 {[%clk 0:01:24.8]} 23. exd5 {[%clk 0:00:14.6]}
23... cxd5 {[%clk 0:01:22.7]} 24. f4 {[%clk 0:00:15]} 24... c5 {[%clk
0:01:16.8]} 25. f5 {[%clk 0:00:15]} 25... Bd7 {[%clk 0:01:17]} 26. c3 {[%clk
0:00:15.3]} 26... Rxa4 {[%clk 0:01:16.8]} 27. bxa4 {[%clk 0:00:13.1]} 27... Bxc3
{[%clk 0:01:13.4]} 28. Bb5 {[%clk 0:00:12.6]} 28... d4 {[%clk 0:01:09.6]} 29.
Rc2 {[%clk 0:00:11.7]} 29... Ke7 {[%clk 0:01:03.2]} 30. Ke2 {[%clk 0:00:11.8]}
30... Bxf5 {[%clk 0:00:57.7]} 31. Bd3 {[%clk 0:00:12.3]} 31... Be6 {[%clk
0:00:56.4]} 32. Rb1 {[%clk 0:00:11.6]} 32... Rd7 {[%clk 0:00:50.2]} 33. Rxc3
{[%clk 0:00:09.6]} 33... dxc3 {[%clk 0:00:49.8]} 34. Rc1 {[%clk 0:00:10.1]}
34... Rd4 {[%clk 0:00:45.5]} 35. Rxc3 {[%clk 0:00:09]} 35... Kd6 {[%clk
0:00:45.7]} 36. Bb5 {[%clk 0:00:07.9]} 36... Bxa2 {[%clk 0:00:45.6]} 37. Rf3
{[%clk 0:00:07.1]} 37... Ke5 {[%clk 0:00:43.1]} 38. Ke3 {[%clk 0:00:06]} 38...
Bd5 {[%clk 0:00:42.1]} 39. Rf2 {[%clk 0:00:05.8]} 39... Rb4 {[%clk 0:00:41.7]}
40. Kd3 {[%clk 0:00:04.3]} 40... Rb3+ {[%clk 0:00:40.4]} 41. Kc2 {[%clk
0:00:04.4]} 41... Rg3 {[%clk 0:00:40.3]} 42. Bf1 {[%clk 0:00:02.6]} 42... c4
{[%clk 0:00:38]} 43. Kb2 {[%clk 0:00:02.7]} 43... f5 {[%clk 0:00:36.9]} 44. Kc2
{[%clk 0:00:03.1]} 44... Be4+ {[%clk 0:00:37.1]} 45. Kb2 {[%clk 0:00:02.8]}
45... Kd4 {[%clk 0:00:37.6]} 46. Rd2+ {[%clk 0:00:02.8]} 46... Kc5 {[%clk
0:00:37.5]} 47. Kc1 {[%clk 0:00:01.8]} 47... Rb3 {[%clk 0:00:35.1]} 0-1

[Event "*** Titled Tuesday Blitz"]
[Site "Chess.com"]
[Date "2021.02.02"]
[Round "2"]
[White "CheckThis4"]
[Black "DrVelja"]
[Result "1/2-1/2"]
[WhiteElo "2579"]
[BlackElo "2896"]
[TimeControl "180+1"]
[EndTime "10:19:58 PST"]
[Termination "Game drawn by repetition"]

1. e4 {[%clk 0:03:00.9]} 1... c6 {[%clk 0:03:00.5]} 2. c4 {[%clk 0:02:58.5]}
2... e5 {[%clk 0:02:58.3]} 3. Nf3 {[%clk 0:02:57.7]} 3... d6 {[%clk 0:02:54.7]}
4. d4 {[%clk 0:02:55.8]} 4... Nd7 {[%clk 0:02:55.1]} 5. Nc3 {[%clk 0:02:55.4]}
5... g6 {[%clk 0:02:55]} 6. Be3 {[%clk 0:02:52.2]} 6... Bg7 {[%clk 0:02:54.7]}
7. Be2 {[%clk 0:02:50.3]} 7... Ngf6 {[%clk 0:02:52.4]} 8. d5 {[%clk 0:02:38.6]}
8... c5 {[%clk 0:02:41.1]} 9. Nd2 {[%clk 0:02:36]} 9... h5 {[%clk 0:02:39]} 10.
Qc2 {[%clk 0:02:23.3]} 10... Bh6 {[%clk 0:02:37.7]} 11. Bxh6 {[%clk 0:02:16.7]}
11... Rxh6 {[%clk 0:02:38.6]} 12. O-O-O {[%clk 0:02:16.5]} 12... Kf8 {[%clk
0:02:34]} 13. g3 {[%clk 0:02:06.7]} 13... Kg7 {[%clk 0:02:31.7]} 14. f4 {[%clk
0:02:05.1]} 14... a6 {[%clk 0:02:32.1]} 15. f5 {[%clk 0:01:38.8]} 15... g5
{[%clk 0:02:25]} 16. h4 {[%clk 0:01:34.6]} 16... g4 {[%clk 0:02:24.2]} 17. Kb1
{[%clk 0:01:32]} 17... Ne8 {[%clk 0:02:22.9]} 18. Nf1 {[%clk 0:01:30.1]} 18...
f6 {[%clk 0:02:22.9]} 19. Ne3 {[%clk 0:01:29.9]} 19... Nc7 {[%clk 0:02:18.8]}
20. Bxg4 {[%clk 0:01:27]} 20... hxg4 {[%clk 0:02:18.3]} 21. Nxg4 {[%clk
0:01:27.9]} 21... Rh7 {[%clk 0:02:13.4]} 22. h5 {[%clk 0:01:26]} 22... Kf7
{[%clk 0:02:11.9]} 23. h6 {[%clk 0:01:25.3]} 23... b5 {[%clk 0:02:10.8]} 24. Ne3
{[%clk 0:01:19.2]} 24... Nb6 {[%clk 0:01:55.6]} 25. Qe2 {[%clk 0:01:17.1]} 25...
Qg8 {[%clk 0:01:50.7]} 26. Qh5+ {[%clk 0:01:08.9]} 26... Kf8 {[%clk 0:01:49.8]}
27. Rh4 {[%clk 0:01:06]} 27... Qg5 {[%clk 0:01:27.2]} 28. Qg6 {[%clk 0:01:05.8]}
28... Rh8 {[%clk 0:01:22]} 29. Rh5 {[%clk 0:00:58.4]} 29... Qxg6 {[%clk
0:01:12.2]} 30. fxg6 {[%clk 0:00:59.3]} 30... Kg8 {[%clk 0:01:11.4]} 31. g4
{[%clk 0:00:42.5]} 31... Nxc4 {[%clk 0:01:07.5]} 32. Nf5 {[%clk 0:00:36]} 32...
Bxf5 {[%clk 0:01:05.8]} 33. exf5 {[%clk 0:00:35.6]} 33... Ne8 {[%clk 0:00:53.8]}
34. Ne4 {[%clk 0:00:30]} 34... Ne3 {[%clk 0:00:53.5]} 35. Rg1 {[%clk 0:00:24.9]}
35... Nxd5 {[%clk 0:00:52.6]} 36. g5 {[%clk 0:00:24.4]} 36... fxg5 {[%clk
0:00:50.4]} 37. Nxg5 {[%clk 0:00:21.5]} 37... Nef6 {[%clk 0:00:31.8]} 38. h7+
{[%clk 0:00:21.4]} 38... Kf8 {[%clk 0:00:29.6]} 39. g7+ {[%clk 0:00:19.2]} 39...
Ke7 {[%clk 0:00:24.1]} 40. gxh8=Q {[%clk 0:00:18]} 40... Rxh8 {[%clk 0:00:25]}
41. Rh6 {[%clk 0:00:17.8]} 41... Nf4 {[%clk 0:00:24.2]} 42. Ne6 {[%clk
0:00:16.9]} 42... N4h5 {[%clk 0:00:19.3]} 43. Rgg6 {[%clk 0:00:15.2]} 43... Kf7
{[%clk 0:00:18.5]} 44. Ng5+ {[%clk 0:00:13.5]} 44... Ke7 {[%clk 0:00:19.1]} 45.
Ne6 {[%clk 0:00:13.8]} 45... Kf7 {[%clk 0:00:18.9]} 46. Ng5+ {[%clk 0:00:14.1]}
46... Ke7 {[%clk 0:00:19.2]} 47. Ne6 {[%clk 0:00:14.4]} 1/2-1/2